bitfinex-derivatives/quotes_SOLF0:USTF0_20241016
["timestamp","ask_amount","ask_price","bid_price","bid_amount"]
[1729073763667,5.62,155.9,155.82,15.4]
[1729073764175,22.57462923,155.93,155.84,3.2087]
[1729073764370,21.02,155.92,155.84,3.2087]
[1729073765075,21.02,155.92,155.85,3.2086]
[1729073765867,3.25462923,155.93,155.89,3.2076]
[1729073766072,5.62,155.93,155.89,3.2076]
[1729073766270,8.81191094,155.93,155.89,3.2076]
[1729073766470,3.19191094,155.93,155.89,3.2076]
[1729073766670,5.62,155.94,155.89,3.2076]
[1729073766872,3.15628478,155.93,155.89,3.2076]
[1729073767176,3.15628478,155.93,155.86,15.4]
[1729073767373,0.15628478,155.93,155.87,1.4352]
[1729073767576,5.62,155.94,155.87,2.7612]
[1729073767772,3.14187868,155.93,155.9,3.2075]
[1729073767974,3.14187868,155.93,155.87,4.1835]
[1729073768972,5.62,155.94,155.87,4.1835]
[1729073769174,3.22113963,155.95,155.88,15.4]
[1729073769378,5.44,155.96,155.88,15.4]
[1729073769681,5.44,155.97,155.92,3.2071]
[1729073769973,5.44,155.98,155.9,15.4]
[1729073770376,5.44,155.98,155.92,3.2071]
[1729073770578,2.44,155.98,155.92,3.2071]
[1729073771281,4.60035005,156.0,155.9,15.4]
[1729073771481,5.44,155.99,155.93,3.2069]
[1729073771983,5.44,155.99,155.9,15.4]
[1729073772282,20.84,155.99,155.9,15.4]
[1729073772484,20.84,155.99,155.92,3.2072]
[1729073773083,15.4,155.97,155.89,3.2077]
[1729073773382,12.4,155.97,155.87,19.5835]
[1729073773581,12.4,155.97,155.9,3.2076]
[1729073773884,20.84,155.99,155.89,15.4]
[1729073774083,20.84,155.99,155.92,3.2072]
[1729073774381,20.84,155.99,155.89,15.4]
[1729073774579,15.4,155.97,155.89,3.2077]
[1729073774772,0.96208976,155.96,155.89,3.2077]
[1729073774978,5.44,155.95,155.89,3.2077]
[1729073775178,0.96220815,155.94,155.89,3.2077]
[1729073775686,5.44,155.95,155.89,3.2077]
[1729073775877,0.96215316,155.94,155.89,3.2077]
[1729073776473,0.96215316,155.94,155.9,3.2075]
[1729073776785,0.96215316,155.94,155.87,19.5835]
[1729073778184,0.96215316,155.94,155.89,3.2078]
[1729073778381,15.4,155.93,155.87,4.1835]
[1729073778684,5.44,155.95,155.89,3.2078]
[1729073778685,0.96215316,155.92,155.89,3.2078]
[1729073778888,4.20887231,155.91,155.89,3.2078]
[1729073779085,3.24671915,155.91,155.88,3.208]
[1729073779286,20.84,155.95,155.88,3.208]
[1729073779485,0.96228466,155.94,155.88,3.208]
[1729073780387,6.40228466,155.94,155.88,3.208]
[1729073780580,0.96228466,155.93,155.88,3.208]
[1729073780985,0.96228466,155.93,155.85,15.4]
[1729073780986,15.4,155.91,155.71,19.32]
[1729073781187,0.96228466,155.9,155.8,15.4]
[1729073781383,0.96228466,155.9,155.81,5.44]
[1729073781582,0.96228466,155.9,155.84,3.2086]
[1729073781784,24.01140098,155.91,155.81,5.44]
[1729073782291,24.01140098,155.91,155.84,3.2087]
[1729073782492,21.01140098,155.91,155.84,3.2087]
[1729073782790,21.01140098,155.91,155.82,15.4]
[1729073783583,21.01140098,155.91,155.85,3.2085]
[1729073784485,5.44,155.93,155.85,15.4]
[1729073784687,5.44,155.93,155.86,2.8344]
[1729073784887,5.44,155.93,155.86,4.2644]
[1729073785189,15.4,155.96,155.89,3.2077]
[1729073785388,5.44,155.95,155.87,15.4]
[1729073786293,5.44,155.95,155.89,3.2077]
[1729073786488,15.4,155.94,155.86,4.2644]
[1729073787395,15.4,155.94,155.88,3.2079]
[1729073788096,12.4,155.94,155.86,4.2644]
[1729073789094,12.4,155.94,155.89,3.2078]
[1729073790488,12.4,155.94,155.86,4.2644]
[1729073791086,12.4,155.94,155.87,3.2081]
[1729073791281,12.4,155.94,155.86,2.8344]
[1729073791592,5.44,155.95,155.88,3.2079]
[1729073791788,5.44,155.95,155.84,15.4]
[1729073791789,9.86,155.9,155.85,9.86]
[1729073792095,3.18691805,155.89,155.83,5.44]
[1729073792388,3.18691805,155.89,155.85,3.2085]
[1729073794088,9.86,155.9,155.85,13.0685]
[1729073794293,3.22412059,155.89,155.85,3.2085]
[1729073794493,9.86,155.9,155.85,13.0685]
[1729073794792,3.16603122,155.89,155.85,13.0685]
[1729073795994,13.02603122,155.89,155.85,3.2085]
[1729073797595,9.86,155.89,155.85,3.2085]
[1729073797895,13.147024,155.89,155.85,3.2085]
[1729073798399,9.86,155.88,155.84,3.2087]
[1729073798602,9.86,155.88,155.7,19.32]
[1729073798603,9.86,155.85,155.77,5.3]
[1729073798788,9.86,155.85,155.78,9.86]
[1729073798988,9.86,155.85,155.8,3.2095]
[1729073799297,9.86,155.86,155.8,9.86]
[1729073799600,9.86,155.87,155.8,9.86]
[1729073800100,9.86,155.87,155.82,9.86]
[1729073800297,9.86,155.87,155.83,3.209]
[1729073800601,6.86,155.87,155.83,3.209]
[1729073801801,9.86,155.87,155.83,3.209]
[1729073803203,19.32,155.96,155.82,9.86]
[1729073803204,1.0,156.04,155.86,9.86]
[1729073803392,1.0,156.04,155.98,9.86]
[1729073803594,1.0,156.04,155.99,3.2057]
[1729073803800,1.0,156.04,155.87,1.4266]
[1729073804104,285.39541885,156.02,155.94,15.4]
[1729073804602,285.39541885,156.02,155.93,15.4]
[1729073804800,285.39541885,156.02,155.96,3.2062]
[1729073804996,285.39541885,156.02,155.95,15.4]
[1729073804997,282.17313,156.02,155.95,15.4]
[1729073805195,282.17313,156.02,155.97,3.2062]
[1729073805400,282.17313,156.02,155.95,15.4]
[1729073805707,282.17313,156.02,156.01,3.2054]
[1729073805906,282.17313,156.02,155.99,15.4]
[1729073806106,282.17313,156.02,155.97,18.0702]
[1729073806310,282.17313,156.02,156.01,3.2054]
[1729073807102,282.17313,156.02,156.0,3.2056]
[1729073807705,279.17313,156.02,156.0,3.2056]
[1729073808902,279.17313,156.02,155.99,3.2056]
[1729073809104,279.17313,156.02,155.97,2.6702]
[1729073809300,279.17313,156.02,155.93,15.4]
[1729073809904,15.4,156.01,155.9,15.4]
[1729073810604,8.12,156.0,155.97,3.2061]
[1729073810807,8.12,156.0,155.92,15.4]
[1729073811108,4.9146,156.0,155.94,15.4]
[1729073811409,287.29313,156.02,155.95,1.4147]
[1729073811613,287.29313,156.02,155.95,4.2622]
[1729073812106,279.17313,156.02,156.01,3.2054]
[1729073813408,276.17313,156.02,156.01,3.2054]
[1729073816106,273.17313,156.02,156.01,3.2054]
[1729073818717,273.17313,156.02,155.97,15.4]
[1729073819516,270.17313,156.02,155.97,15.4]
[1729073820112,270.17313,156.02,156.01,3.2054]
[1729073820304,270.17313,156.02,155.97,15.4]
[1729073821414,270.17313,156.02,156.0,3.2054]
[1729073822117,270.17313,156.02,155.97,15.4]
[1729073822313,267.17313,156.02,155.97,15.4]
[1729073822616,275.27313,156.02,155.96,3.2062]
[1729073822819,275.27313,156.02,155.95,4.2622]
[1729073823914,3.2057,156.0,155.95,4.2622]
[1729073825019,275.27313,156.02,155.95,4.2622]
[1729073825020,267.17313,156.02,155.95,4.2622]
[1729073825220,267.17313,156.02,155.96,15.4]
[1729073825425,275.27313,156.02,155.96,15.4]
[1729073825624,267.17313,156.02,155.96,15.4]
[1729073826326,267.17313,156.02,156.01,3.2054]
[1729073827522,264.17313,156.02,156.01,3.2054]
[1729073830025,264.17313,156.02,155.93,18.64186393]
[1729073830026,264.17313,156.02,155.84,3.23545075]
[1729073830212,264.17313,156.02,155.92,15.4]
[1729073830213,7.74,156.01,155.92,15.4]
[1729073830526,4.74,156.01,155.96,3.2062]
[1729073831026,4.74,156.01,155.97,3.2061]
[1729073831225,264.17313,156.02,155.94,15.4]
[1729073831422,264.17313,156.02,155.96,15.4]
[1729073831920,264.17313,156.02,155.99,3.2056]
[1729073832319,264.17313,156.02,155.99,15.4]
[1729073832519,264.17313,156.02,156.01,3.2054]
[1729073832823,261.17313,156.02,155.97,15.4]
[1729073833023,261.17313,156.02,156.01,3.2054]
[1729073833228,261.17313,156.02,155.97,15.4]
[1729073833624,261.17313,156.02,156.01,3.2054]
[1729073835727,258.17313,156.02,156.01,3.2054]
[1729073838031,258.17313,156.02,155.97,15.4]
[1729073838327,255.17313,156.02,155.97,15.4]
[1729073838724,255.17313,156.02,156.01,3.2054]
[1729073839524,255.17313,156.02,155.95,108.32886414]
[1729073839724,4.20886477,156.01,155.93,4.0994]
[1729073839925,0.9615615,156.0,155.92,15.4]
[1729073840234,0.9615615,155.99,155.92,15.4]
[1729073840423,0.9615615,155.98,155.92,15.4]
[1729073840622,33.82519507,156.01,155.94,3.2067]
[1729073840828,0.96165424,156.0,155.94,3.2067]
[1729073841431,33.22914931,156.01,155.94,3.2067]
[1729073841732,33.22914931,156.01,155.93,3.207]
[1729073842428,8.69435388,156.0,155.93,3.207]
[1729073842736,0.95435348,155.99,155.93,3.207]
[1729073844128,7.74,156.0,155.93,3.207]
[1729073844129,5.69435348,156.0,155.93,3.207]
[1729073845134,5.69435348,156.0,155.92,15.4]
[1729073845135,5.69435348,156.0,155.92,3.2071]
[1729073845333,15.4,155.99,155.88,16.8453]
[1729073845722,15.4,155.97,155.88,18.6078]
[1729073845926,2.7671,155.96,155.88,15.4]
[1729073846135,7.74,155.95,155.88,15.4]
[1729073846527,7.74,155.95,155.86,15.4]
[1729073846733,21.4537,155.95,155.86,15.4]
[1729073847037,21.4537,155.95,155.87,3.2081]
[1729073847738,21.4537,155.95,155.88,3.208]
[1729073848132,21.4537,155.95,155.86,15.4]
[1729073848340,6.0537,155.95,155.9,3.2076]
[1729073848528,2.7671,155.96,155.9,15.4]
[1729073848529,9.5071,155.96,155.9,15.4]
[1729073848729,9.5071,155.96,155.86,15.4]
[1729073848730,72.5333993,156.01,155.94,3.2066]
[1729073848930,7.74,155.98,155.92,15.4]
[1729073849435,73.9346993,156.01,155.94,15.4]
[1729073849436,7.74,155.99,155.94,15.4]
[1729073849826,7.74,155.99,155.96,3.2063]
[1729073850537,7.74,155.99,155.95,3.2065]
[1729073850734,7.74,155.99,155.94,15.4]
[1729073851139,7.74,155.99,155.95,3.2065]
[1729073851945,4.74,155.99,155.95,3.2065]
[1729073853145,4.74,155.99,155.92,15.4]
[1729073853653,4.74,155.99,155.91,3.2073]
[1729073853854,1.3573,155.98,155.91,3.2073]
[1729073854163,1.3573,155.98,155.9,15.4]
[1729073854758,1.3573,155.98,155.92,3.2071]
[1729073855056,3.0973,155.99,155.92,3.2071]
[1729073855242,15.10351823,155.98,155.92,3.2071]
[1729073856253,15.10351823,155.97,155.9,15.4]
[1729073856443,15.10351823,155.98,155.9,15.4]
[1729073856643,15.10351823,155.97,155.9,15.4]
[1729073856854,15.10351823,155.98,155.9,18.6075]
[1729073857053,15.10351823,155.97,155.9,18.6075]
[1729073857255,15.10351823,155.98,155.9,18.6075]
[1729073857450,12.10351823,155.97,155.89,3.2078]
[1729073857650,18.4973,155.99,155.89,3.2078]
[1729073857847,15.4,155.96,155.88,15.4]
[1729073858047,1.365,155.95,155.88,18.6079]
[1729073858359,22.78,155.94,155.86,15.4]
[1729073859850,22.78,155.94,155.87,3.2082]
[1729073860052,19.78,155.94,155.87,3.2082]
[1729073862754,16.78,155.94,155.87,3.2082]
[1729073863451,16.78,155.94,155.86,15.4]
[1729073863759,1.38,155.94,155.86,15.4]
[1729073864257,1.38,155.94,155.88,3.2079]
[1729073864847,1.38,155.94,155.86,15.4]
[1729073865057,1.38,155.94,155.88,15.4]
[1729073865256,1.365,155.95,155.88,15.4]
[1729073865458,7.38,155.94,155.88,15.4]
[1729073865757,7.38,155.94,155.9,3.2075]
[1729073865960,4.38,155.94,155.9,3.2075]
[1729073866256,3.18852467,155.93,155.85,15.4]
[1729073866447,3.23890188,155.92,155.88,3.208]
[1729073866647,4.38,155.94,155.85,15.4]
[1729073866853,3.25654995,155.93,155.85,15.4]
[1729073867056,4.38,155.94,155.88,15.4]
[1729073867748,4.38,155.94,155.81,2.8549]
[1729073867749,3.20789213,155.93,155.86,15.4]
[1729073867950,4.38,155.94,155.86,15.4]
[1729073868149,3.26885428,155.93,155.88,15.4]
[1729073868351,4.38,155.94,155.88,15.4]
[1729073868856,3.17003144,155.93,155.88,15.4]
[1729073869057,1.365,155.95,155.87,1.4414]
[1729073869355,7.38,155.93,155.87,1.4414]
[1729073869759,7.38,155.93,155.9,3.2075]
[1729073870055,7.38,155.93,155.87,1.4414]
[1729073870949,10.55816662,155.93,155.9,3.2076]
[1729073872257,7.55816662,155.93,155.9,3.2076]
[1729073873854,3.17816662,155.93,155.9,3.2076]
[1729073874062,7.38,155.94,155.9,3.2076]
[1729073874660,7.38,155.94,155.87,1.4414]
[1729073874862,7.38,155.94,155.89,3.2078]
[1729073875059,4.38,155.94,155.89,3.2078]
[1729073875673,4.38,155.94,155.87,1.4414]
[1729073875964,4.38,155.94,155.9,3.2076]
[1729073877865,14.24,155.94,155.9,3.2076]
[1729073878466,11.24,155.94,155.9,3.2076]
[1729073881461,20.7501,156.0,155.91,9.86]
[1729073881767,3.1301256,156.01,155.96,9.86]
[1729073881957,272.01313,156.02,155.96,9.86]
[1729073882267,258.31150937,156.02,155.99,9.86]
[1729073882459,255.17313,156.02,155.99,9.86]
[1729073882654,255.17313,156.02,156.01,3.2054]
[1729073883365,255.17313,156.02,155.99,9.86]
[1729073883664,255.17313,156.02,156.0,3.2054]
[1729073884666,252.17313,156.02,156.0,3.2054]
[1729073884968,252.17313,156.02,156.01,3.2054]
[1729073886264,250.00183,156.02,156.01,3.2054]
[1729073886868,250.00183,156.02,155.99,3.2057]
[1729073887167,250.00183,156.02,155.97,4.1671]
[1729073887168,247.00183,156.02,155.97,4.1671]
[1729073887476,247.00183,156.02,156.0,3.2054]
[1729073887977,247.00183,156.02,155.97,4.1671]
[1729073888161,247.00183,156.02,155.99,3.2056]
[1729073888357,247.00183,156.02,155.97,4.1671]
[1729073888556,247.00183,156.02,156.0,3.2054]
[1729073889769,247.00183,156.02,156.01,3.2054]
[1729073889971,247.00183,156.02,155.97,4.1671]
[1729073891271,244.00183,156.02,155.97,4.1671]
[1729073891473,244.00183,156.02,156.01,3.2054]
[1729073892567,258.98484934,156.02,156.01,3.2054]
[1729073893867,258.98484934,156.02,156.0,3.2054]
[1729073894173,244.00183,156.02,156.0,3.2054]
[1729073894372,241.00183,156.02,155.97,4.1671]
[1729073894867,14.98199333,156.01,155.97,4.1671]
[1729073895071,14.98199333,156.01,155.98,3.2059]
[1729073895270,14.98199333,156.01,155.97,4.1671]
[1729073895865,14.98199333,156.01,155.98,3.2058]
[1729073896476,14.98199333,156.01,155.97,4.1671]
[1729073896660,14.98199333,156.01,155.99,3.2056]
[1729073896860,14.98199333,156.01,155.97,4.1671]
[1729073897273,11.98199333,156.01,156.0,3.2056]
[1729073897473,11.98199333,156.01,155.97,4.1671]
[1729073897673,241.00183,156.02,155.97,4.1671]
[1729073899975,238.00183,156.02,155.97,4.1671]
[1729073900473,244.62183,156.02,155.92,15.39]
[1729073900674,15.39,156.01,155.92,15.39]
[1729073902475,12.39,156.01,155.92,15.39]
[1729073902876,244.62183,156.02,155.92,15.39]
[1729073903172,15.39,155.99,155.9,19.518]
[1729073903377,15.39,155.99,155.9,2.7788]
[1729073903674,15.39,155.95,155.86,15.39]
[1729073903873,25.17367981,155.95,155.86,15.39]
[1729073904871,25.17367981,155.95,155.84,15.39]
[1729073905273,25.17367981,155.95,155.83,6.62]
[1729073905474,15.39,155.93,155.83,6.62]
[1729073905680,15.39,155.93,155.81,15.39]
[1729073905875,19.26,156.16,155.92,15.39]
[1729073906074,15.39,156.11,156.0,15.39]
[1729073906679,3.24403587,156.08,156.0,15.39]
[1729073907978,235.00183,156.02,156.0,15.39]
[1729073908680,141.69183,156.02,156.0,15.39]
[1729073909787,125.22183,156.02,156.01,24.61]
[1729073911286,122.22183,156.02,156.01,24.61]
[1729073911878,122.22183,156.02,155.94,2.7108]
[1729073912078,122.22183,156.02,155.98,24.61]
[1729073912780,122.22183,156.02,156.01,24.61]
[1729073912975,12.44183,156.02,156.01,24.61]
[1729073913585,12.44183,156.02,156.01,27.8154]
[1729073913783,9.44183,156.02,156.01,27.8154]
[1729073915285,7.27253,156.02,156.01,27.8154]
[1729073915879,4.22662737,156.07,156.01,24.61]
[1729073916080,4.22662737,156.07,156.03,3.2049]
[1729073916483,2.22662737,156.07,156.03,3.2049]
[1729073916682,15.86311127,156.09,156.03,3.2049]
[1729073917080,19.0951874,156.09,156.03,3.2049]
[1729073917486,4.23207613,156.09,156.03,3.2049]
[1729073919290,6.62,156.1,156.03,3.2049]
[1729073919479,9.77619806,156.1,156.03,3.2049]
[1729073920183,9.77619806,156.1,156.02,3.205]
[1729073920387,19.26,156.06,155.84,6.4177]
[1729073920587,9.77619806,156.1,155.92,24.61]
[1729073920588,54.6161,156.05,155.92,24.61]
[1729073920790,6.62,156.04,155.95,3.2064]
[1729073920992,9.89608614,156.04,155.95,3.2064]
[1729073921887,6.89608614,156.04,155.95,3.2064]
[1729073923882,26.15608614,156.04,155.95,3.2064]
[1729073924479,41.00690743,156.04,155.95,3.2064]
[1729073925589,24.61,156.02,155.95,3.2064]
[1729073925786,24.61,156.02,155.94,3.2066]
[1729073926089,26.15608614,156.04,155.94,3.2066]
[1729073926290,24.61,156.02,155.94,3.2066]
[1729073927397,24.61,156.02,155.9,6.62]
[1729073927694,24.61,156.02,155.95,3.2066]
[1729073927998,26.15608614,156.04,155.94,3.2068]
[1729073928192,24.61,156.03,155.9,6.62]
[1729073928393,39.46622394,156.03,155.9,6.62]
[1729073928693,36.46622394,156.03,155.94,3.2067]
[1729073928895,36.46622394,156.03,155.89,24.61]
[1729073929490,36.46622394,156.03,155.96,3.2063]
[1729073930399,21.61,156.03,155.96,3.2063]
[1729073931499,18.61,156.03,155.96,3.2063]
[1729073931898,15.4,156.01,155.96,3.2063]
[1729073932597,15.4,156.01,155.94,3.2066]
[1729073932791,15.4,155.98,155.88,21.9]
[1729073932998,2.6431,155.97,155.92,15.4]
[1729073933297,2.6431,155.97,155.96,3.2064]
[1729073934202,6.1431,155.98,155.95,3.2065]
[1729073934805,6.1431,155.98,155.92,15.4]
[1729073935014,6.5,156.01,155.95,3.2065]
[1729073935299,15.4,156.0,155.9,15.4]
[1729073935606,15.4,156.0,155.93,3.2069]
[1729073935993,30.26345126,156.0,155.93,3.2069]
[1729073936897,27.26345126,156.0,155.93,3.2069]
[1729073937298,27.26345126,156.0,155.95,3.2065]
[1729073937708,12.4,156.0,155.95,3.2065]
[1729073939399,15.1628,156.0,155.95,3.2065]
[1729073939602,12.1628,156.0,155.95,3.2065]
[1729073940412,2.7628,156.0,155.95,3.2065]
[1729073942007,2.7628,156.0,155.92,15.4]
[1729073942008,1.4052,156.0,155.97,3.2061]
[1729073942210,20.07608614,156.04,155.94,15.4]
[1729073942398,5.99528614,156.04,155.96,15.4]
[1729073942603,2.99528614,156.04,155.96,15.4]
[1729073942800,2.7192,156.04,155.96,15.4]
[1729073943009,5.96295317,156.04,155.96,15.4]
[1729073943208,2.7192,156.04,155.96,15.4]
[1729073943606,21.34819717,156.04,155.96,3.2063]
[1729073943908,15.4,156.01,155.92,15.4]
[1729073944215,6.52,156.0,155.94,3.2067]
[1729073945611,6.52,156.0,155.95,3.2064]
[1729073945908,14.8933543,155.99,155.95,3.2064]
[1729073946111,14.8933543,155.98,155.95,3.2064]
[1729073946308,14.8933543,155.97,155.95,3.2064]
[1729073946510,11.8933543,155.99,155.93,3.2069]
[1729073946811,6.52,156.0,155.93,3.2069]
[1729073947411,6.52,156.0,155.94,3.2067]
[1729073948114,15.4,155.99,155.92,3.207]
[1729073948311,15.4,155.97,155.92,3.207]
[1729073948517,1.4287,155.98,155.88,16.7377]
[1729073948716,1.4287,155.98,155.93,3.2068]
[1729073948906,15.4,155.99,155.88,16.7377]
[1729073949113,16.8342,155.98,155.88,1.3377]
[1729073949417,16.8342,155.98,155.88,16.7377]
[1729073949610,1.3894,155.97,155.88,16.7377]
[1729073949913,1.3894,155.97,155.91,3.2073]
[1729073950315,1.3894,155.97,155.88,16.7377]
[1729073950507,1.3894,155.97,155.91,3.2072]
[1729073952313,15.4,155.96,155.89,3.2078]
[1729073952512,6.52,155.95,155.89,3.2078]
[1729073952712,15.4,155.94,155.85,2.7912]
[1729073952915,15.4,155.94,155.83,1.4387]
[1729073952916,12.4,155.92,155.86,3.2083]
[1729073953215,15.4,155.9,155.8,18.0954]
[1729073953408,21.92,155.9,155.8,19.5341]
[1729073954221,21.92,155.9,155.85,3.2085]
[1729073955313,21.92,155.9,155.85,3.2086]
[1729073955508,15.4,155.88,155.8,4.1341]
[1729073955715,6.52,155.9,155.8,19.5341]
[1729073956113,15.4,155.89,155.8,19.5341]
[1729073956512,15.4,155.89,155.84,3.2087]
[1729073957021,12.4,155.89,155.84,3.2087]
[1729073957216,12.4,155.89,155.8,4.1341]
[1729073957423,12.4,155.89,155.83,3.2089]
[1729073957615,12.4,155.89,155.78,15.4]
[1729073957815,15.4,155.86,155.76,21.72]
[1729073958123,21.72,155.86,155.83,3.209]
[1729073959226,21.72,155.86,155.76,21.72]
[1729073959520,6.32,155.86,155.78,15.4]
[1729073959722,3.32,155.86,155.78,15.4]
[1729073959921,3.32,155.86,155.79,3.2099]
[1729073960118,3.32,155.86,155.77,15.4]
[1729073960432,18.72,155.86,155.82,3.2091]
[1729073960810,18.72,155.86,155.77,15.4]
[1729073961011,15.4,155.88,155.77,15.4]
[1729073961225,21.72,155.88,155.79,15.4]
[1729073962121,21.72,155.88,155.84,3.2087]
[1729073963024,21.72,155.88,155.79,15.4]
[1729073963025,18.72,155.88,155.79,15.4]
[1729073963325,18.72,155.88,155.83,3.2089]
[1729073964611,18.72,155.88,155.77,15.4]
[1729073964817,18.72,155.88,155.85,3.2085]
[1729073965920,6.32,155.88,155.86,3.2083]
[1729073966122,15.4,155.9,155.8,6.32]
[1729073966322,18.72,155.9,155.8,6.32]
[1729073966527,18.72,155.9,155.88,3.2079]
[1729073967122,12.4,155.9,155.88,3.2079]
[1729073967426,12.4,155.9,155.82,2.7056]
[1729073967922,15.4,155.88,155.85,3.2085]
[1729073968226,15.4,155.88,155.82,2.7056]
[1729073968426,15.4,155.88,155.86,3.2084]
[1729073969124,15.4,155.88,155.82,2.7056]
[1729073969532,12.4,155.88,155.86,3.2083]
[1729073970119,12.4,155.88,155.82,2.7056]
[1729073970316,12.4,155.88,155.84,3.2087]
[1729073970823,12.4,155.88,155.82,2.7056]
[1729073971025,15.4,155.86,155.83,3.209]
[1729073971231,15.4,155.86,155.82,2.7056]
[1729073971619,15.4,155.86,155.85,3.2086]
[1729073972229,12.4,155.86,155.85,3.2086]
[1729073973225,15.4,155.88,155.81,1.3087]
[1729073974121,15.4,155.88,155.86,3.2083]
[1729073974325,15.4,155.88,155.81,1.3087]
[1729073974826,12.4,155.88,155.81,1.3087]
[1729073975021,12.4,155.88,155.83,3.209]
[1729073975221,12.4,155.88,155.81,1.3087]
[1729073975424,15.4,155.86,155.81,1.3087]
[1729073976226,15.4,155.86,155.84,3.2088]
[1729073976428,15.4,155.86,155.81,1.3087]
[1729073976628,15.4,155.82,155.78,2.7847]
[1729073976828,15.4,155.82,155.81,3.2094]
[1729073977322,18.67920058,155.82,155.81,3.2094]
[1729073977524,18.67920058,155.82,155.75,1.4238]
[1729073977729,18.67920058,155.82,155.8,3.2097]
[1729073977930,18.67920058,155.82,155.75,1.4238]
[1729073978235,12.4,155.8,155.75,1.4238]
[1729073978534,12.4,155.8,155.78,3.2099]
[1729073978724,15.65993949,155.8,155.6,2.81435497]
[1729073978926,15.4,155.78,155.76,3.2104]
[1729073979229,15.4,155.78,155.7,6.32]
[1729073979825,15.4,155.78,155.69,6.32]
[1729073980222,15.4,155.78,155.75,3.2106]
[1729073980734,15.4,155.78,155.69,6.32]
[1729073980931,12.4,155.78,155.69,21.72]
[1729073981331,18.65993949,155.8,155.77,3.2101]
[1729073981536,15.4,155.8,155.69,21.72]
[1729073982034,3.17182797,155.79,155.78,3.2099]
[1729073983532,15.4,155.8,155.69,21.72]
[1729073983735,15.4,155.8,155.71,15.4]
[1729073983736,3.19655519,155.8,155.71,15.4]
[1729073983934,21.72,155.81,155.71,15.4]
[1729073984832,25.00872028,155.81,155.79,3.2098]
[1729073985029,25.00872028,155.81,155.71,15.4]
[1729073985428,25.00872028,155.81,155.79,3.2098]
[1729073985635,25.00872028,155.81,155.71,15.4]
[1729073985939,18.68872028,155.81,155.71,15.4]
[1729073986141,15.4,155.81,155.8,3.2097]
[1729073986341,3.22898959,155.82,155.73,6.32]
[1729073986640,3.22898959,155.82,155.73,9.0329]
[1729073986834,3.22898959,155.82,155.81,3.2095]
[1729073987031,21.72,155.83,155.74,1.3923]
[1729073987438,24.8909,155.83,155.74,1.3923]
[1729073987935,15.4,155.77,155.66,6.4248]
[1729073988129,15.4,155.77,155.66,19.555]
[1729073988531,15.4,155.77,155.75,3.2106]
[1729073989444,12.4,155.77,155.67,6.4246]
[1729073989746,6.08,155.79,155.67,6.4246]
[1729073989943,15.4,155.77,155.75,3.2106]
[1729073990244,15.4,155.77,155.69,6.08]
[1729073990439,15.4,155.77,155.75,3.2106]
[1729073990746,21.48,155.79,155.69,21.48]